[Event "Titled Tuesday Blitz May 16 Early 2023"]
[White "Rom, Jasper"]
[Black "Slayyy_200"]
[WhiteFideId "2023733"]
[WhiteElo "2233"]
[BlackElo "2111"]
[Result "1-0"]
[Round "02"]
[TimeControl "180+2"]
[Date "2023.05.16"]
[WhiteClock "0:00:10"]
[BlackClock "0:00:20"]

1. e4 {[%clk 0:03:00]}  c5 {[%clk 0:02:59]} 2. Nc3 {[%clk 0:03:00]}  Nc6 {[%clk 0:02:58]} 3. f4 {[%clk 0:03:00]}  g6 {[%clk 0:02:59]} 4. Nf3 {[%clk 0:03:01]}  Bg7 {[%clk 0:02:59]} 5. Bb5 {[%clk 0:03:01]}  Nd4 {[%clk 0:02:58]} 6. O-O {[%clk 0:03:02]}  e6 {[%clk 0:02:52]} 7. d3 {[%clk 0:03:01]}  Ne7 {[%clk 0:02:51]} 8. Nxd4 {[%clk 0:03:01]}  cxd4 {[%clk 0:02:51]} 9. Ne2 {[%clk 0:03:02]}  O-O {[%clk 0:02:50]} 10. Qe1 {[%clk 0:03:02]}  d5 {[%clk 0:02:50]} 11. Kh1 {[%clk 0:02:52]}  a6 {[%clk 0:02:47]} 12. Ba4 {[%clk 0:02:49]}  Bd7 {[%clk 0:02:42]} 13. Bb3 {[%clk 0:02:48]}  Bc6 {[%clk 0:02:42]} 14. e5 {[%clk 0:02:47]}  Qb6 {[%clk 0:02:38]} 15. Qf2 {[%clk 0:02:45]}  Nf5 {[%clk 0:02:37]} 16. c3 {[%clk 0:02:43]}  Bb5 {[%clk 0:02:35]} 17. Nxd4 {[%clk 0:02:15]}  Bxd3 {[%clk 0:02:28]} 18. Nxf5 {[%clk 0:02:12]}  Qxf2 {[%clk 0:02:27]} 19. Ne7+ {[%clk 0:02:12]}  Kh8 {[%clk 0:02:27]} 20. Rxf2 {[%clk 0:02:12]}  Rfe8 {[%clk 0:02:23]} 21. Nxd5 {[%clk 0:02:10]}  exd5 {[%clk 0:02:22]} 22. Bxd5 {[%clk 0:02:11]}  Rad8 {[%clk 0:02:19]} 23. Bf3 {[%clk 0:01:56]}  f6 {[%clk 0:02:13]} 24. Bd2 {[%clk 0:01:46]}  fxe5 {[%clk 0:02:11]} 25. fxe5 {[%clk 0:01:46]}  Rxe5 {[%clk 0:02:11]} 26. Re1 {[%clk 0:01:02]}  Rxe1+ {[%clk 0:02:00]} 27. Bxe1 {[%clk 0:01:03]}  b5 {[%clk 0:02:00]} 28. Rd2 {[%clk 0:01:02]}  Re8 {[%clk 0:01:51]} 29. Bf2 {[%clk 0:00:58]}  Bc4 {[%clk 0:01:49]} 30. a3 {[%clk 0:00:44]}  Bh6 {[%clk 0:01:47]} 31. Bd4+ {[%clk 0:00:38]}  Kg8 {[%clk 0:01:46]} 32. Rd1 {[%clk 0:00:39]}  Bb3 {[%clk 0:01:36]} 33. Rf1 {[%clk 0:00:32]}  Bc4 {[%clk 0:01:35]} 34. Ra1 {[%clk 0:00:30]}  g5 {[%clk 0:01:13]} 35. Kg1 {[%clk 0:00:30]}  Bf8 {[%clk 0:01:10]} 36. h3 {[%clk 0:00:29]}  Kf7 {[%clk 0:01:08]} 37. Kf2 {[%clk 0:00:29]}  Kg6 {[%clk 0:01:08]} 38. Rd1 {[%clk 0:00:24]}  h5 {[%clk 0:01:03]} 39. Re1 {[%clk 0:00:17]}  Rd8 {[%clk 0:00:51]} 40. Be4+ {[%clk 0:00:14]}  Kh6 {[%clk 0:00:51]} 41. Be3 {[%clk 0:00:12]}  Bd6 {[%clk 0:00:48]} 42. h4 {[%clk 0:00:12]}  Rf8+ {[%clk 0:00:47]} 43. Kg1 {[%clk 0:00:12]}  Bf4 {[%clk 0:00:45]} 44. hxg5+ {[%clk 0:00:11]}  Kxg5 {[%clk 0:00:45]} 45. Bxf4+ {[%clk 0:00:11]}  Rxf4 {[%clk 0:00:45]} 46. Bf3 {[%clk 0:00:11]}  Kh4 {[%clk 0:00:42]} 47. Kf2 {[%clk 0:00:11]}  Kg5 {[%clk 0:00:39]} 48. Re5+ {[%clk 0:00:11]}  Rf5 {[%clk 0:00:38]} 49. Rxf5+ {[%clk 0:00:11]}  Kxf5 {[%clk 0:00:38]} 50. Bxh5 {[%clk 0:00:12]}  Kg5 {[%clk 0:00:38]} 51. Bf3 {[%clk 0:00:10]}  a5 {[%clk 0:00:37]} 52. Ke3 {[%clk 0:00:10]}  Kh4 {[%clk 0:00:35]} 53. Kd4 {[%clk 0:00:10]}  Kg3 {[%clk 0:00:35]} 54. Kc5 {[%clk 0:00:10]}  Bf1 {[%clk 0:00:33]} 55. Bc6 {[%clk 0:00:09]}  b4 {[%clk 0:00:32]} 56. cxb4 {[%clk 0:00:08]}  axb4 {[%clk 0:00:33]} 57. Kxb4 {[%clk 0:00:09]}  Kf4 {[%clk 0:00:31]} 58. a4 {[%clk 0:00:09]}  Ke5 {[%clk 0:00:31]} 59. Kc5 {[%clk 0:00:09]}  Ke6 {[%clk 0:00:27]} 60. b4 {[%clk 0:00:09]}  Ke7 {[%clk 0:00:27]} 61. b5 {[%clk 0:00:10]}  Kd8 {[%clk 0:00:27]} 62. Kd6 {[%clk 0:00:10]}  Bd3 {[%clk 0:00:25]} 63. g4 {[%clk 0:00:10]}  Bc2 {[%clk 0:00:25]} 64. a5 {[%clk 0:00:11]}  Bg6 {[%clk 0:00:24]} 65. a6 {[%clk 0:00:10]}  Kc8 {[%clk 0:00:20]} 66. a7 {[%clk 0:00:10]} 1-0


[Site "https://www.chess.com"]

[Event "Titled Tuesday Blitz May 16 Early 2023"]
[White "Sailer, Mike"]
[Black "DubiousM0ves532"]
[WhiteFideId "2012901"]
[WhiteElo "2109"]
[BlackElo "2464"]
[Result "0-1"]
[Round "02"]
[TimeControl "180+2"]
[Date "2023.05.16"]
[WhiteClock "0:00:00"]
[BlackClock "0:00:17"]

1. d4 {[%clk 0:03:00]}  Nf6 {[%clk 0:02:59]} 2. Bg5 {[%clk 0:03:00]}  e6 {[%clk 0:02:54]} 3. Nd2 {[%clk 0:02:59]}  d5 {[%clk 0:02:53]} 4. e3 {[%clk 0:02:58]}  Be7 {[%clk 0:02:51]} 5. Bd3 {[%clk 0:02:59]}  O-O {[%clk 0:02:49]} 6. c3 {[%clk 0:02:59]}  c5 {[%clk 0:02:49]} 7. f4 {[%clk 0:02:59]}  b6 {[%clk 0:02:48]} 8. Ngf3 {[%clk 0:02:59]}  Ba6 {[%clk 0:02:48]} 9. Bxa6 {[%clk 0:02:58]}  Nxa6 {[%clk 0:02:49]} 10. O-O {[%clk 0:02:59]}  Nc7 {[%clk 0:02:21]} 11. Ne5 {[%clk 0:02:57]}  Qd6 {[%clk 0:02:05]} 12. Rf3 {[%clk 0:02:41]}  Ne4 {[%clk 0:01:57]} 13. Bxe7 {[%clk 0:02:40]}  Qxe7 {[%clk 0:01:57]} 14. Nxe4 {[%clk 0:02:35]}  dxe4 {[%clk 0:01:58]} 15. Rh3 {[%clk 0:02:36]}  f6 {[%clk 0:01:33]} 16. Nc4 {[%clk 0:02:25]}  Nd5 {[%clk 0:01:22]} 17. Qh5 {[%clk 0:02:08]}  g6 {[%clk 0:01:22]} 18. Qh4 {[%clk 0:02:04]}  f5 {[%clk 0:01:05]} 19. Qxe7 {[%clk 0:01:59]}  Nxe7 {[%clk 0:01:06]} 20. g4 {[%clk 0:01:47]}  Nd5 {[%clk 0:01:01]} 21. g5 {[%clk 0:01:42]}  cxd4 {[%clk 0:00:57]} 22. cxd4 {[%clk 0:01:36]}  Rac8 {[%clk 0:00:55]} 23. b3 {[%clk 0:01:31]}  b5 {[%clk 0:00:46]} 24. Nd6 {[%clk 0:01:28]}  Rb8 {[%clk 0:00:41]} 25. a4 {[%clk 0:01:13]}  Rb6 {[%clk 0:00:20]} 26. Nxb5 {[%clk 0:00:39]}  a6 {[%clk 0:00:20]} 27. Na3 {[%clk 0:00:32]}  Rxb3 {[%clk 0:00:21]} 28. Nc4 {[%clk 0:00:25]}  Rc8 {[%clk 0:00:20]} 29. Na5 {[%clk 0:00:00]}  Rb2 {[%clk 0:00:17]} 0-1


[Site "https://www.chess.com"]

[Event "Titled Tuesday Blitz May 16 Early 2023"]
[White "Castellanos Gomez, Alejandro"]
[Black "Necula, Iulian"]
[WhiteFideId "22284141"]
[BlackFideId "1232380"]
[WhiteElo "2158"]
[BlackElo "1790"]
[Result "1-0"]
[Round "02"]
[TimeControl "180+2"]
[Date "2023.05.16"]
[WhiteClock "0:02:21"]
[BlackClock "0:00:12"]

1. d4 {[%clk 0:03:00]}  d6 {[%clk 0:03:00]} 2. Bf4 {[%clk 0:03:01]}  f5 {[%clk 0:02:58]} 3. Nc3 {[%clk 0:03:00]}  Nf6 {[%clk 0:02:58]} 4. h3 {[%clk 0:02:58]}  g6 {[%clk 0:02:58]} 5. Qd2 {[%clk 0:02:56]}  h6 {[%clk 0:02:54]} 6. O-O-O {[%clk 0:02:54]}  g5 {[%clk 0:02:54]} 7. Bh2 {[%clk 0:02:53]}  e6 {[%clk 0:02:40]} 8. g4 {[%clk 0:02:52]}  f4 {[%clk 0:02:39]} 9. e3 {[%clk 0:02:52]}  fxe3 {[%clk 0:02:30]} 10. fxe3 {[%clk 0:02:51]}  Qe7 {[%clk 0:02:26]} 11. Bd3 {[%clk 0:02:51]}  Rg8 {[%clk 0:02:18]} 12. e4 {[%clk 0:02:43]}  Bd7 {[%clk 0:02:11]} 13. e5 {[%clk 0:02:42]}  Nd5 {[%clk 0:02:03]} 14. Nxd5 {[%clk 0:02:41]}  exd5 {[%clk 0:02:02]} 15. exd6 {[%clk 0:02:42]}  Qf7 {[%clk 0:00:14]} 16. Re1+ {[%clk 0:02:30]}  Kd8 {[%clk 0:00:13]} 17. dxc7+ {[%clk 0:02:30]}  Kc8 {[%clk 0:00:13]} 18. cxb8=Q+ {[%clk 0:02:27]}  Rxb8 {[%clk 0:00:14]} 19. Qa5 {[%clk 0:02:23]}  b6 {[%clk 0:00:13]} 20. Qxa7 {[%clk 0:02:21]}  Rb7 {[%clk 0:00:12]} 21. Qa8+ {[%clk 0:02:21]}  Rb8 {[%clk 0:00:12]} 22. Qxb8# {[%clk 0:02:21]} 1-0


[Site "https://www.chess.com"]

[Event "Titled Tuesday Blitz May 16 Early 2023"]
[White "Zavortink, Matt"]
[Black "Hartikainen, Jarmo"]
[WhiteFideId "2034263"]
[BlackFideId "503134"]
[WhiteElo "2455"]
[BlackElo "2092"]
[Result "1-0"]
[Round "02"]
[TimeControl "180+2"]
[Date "2023.05.16"]
[WhiteClock "0:00:21"]
[BlackClock "0:00:08"]

1. Nf3 {[%clk 0:03:00]}  Nf6 {[%clk 0:02:59]} 2. g3 {[%clk 0:03:00]}  g6 {[%clk 0:02:59]} 3. b3 {[%clk 0:03:00]}  Bg7 {[%clk 0:02:59]} 4. Bb2 {[%clk 0:03:01]}  O-O {[%clk 0:02:59]} 5. Bg2 {[%clk 0:03:01]}  d6 {[%clk 0:02:59]} 6. d4 {[%clk 0:03:01]}  e5 {[%clk 0:02:55]} 7. dxe5 {[%clk 0:03:01]}  Ng4 {[%clk 0:02:55]} 8. Nc3 {[%clk 0:02:34]}  Nxe5 {[%clk 0:02:54]} 9. Qd2 {[%clk 0:02:34]}  Nxf3+ {[%clk 0:02:53]} 10. Bxf3 {[%clk 0:02:34]}  Nc6 {[%clk 0:02:50]} 11. O-O-O {[%clk 0:02:30]}  a5 {[%clk 0:02:46]} 12. a4 {[%clk 0:02:22]}  Nb4 {[%clk 0:02:28]} 13. h4 {[%clk 0:02:08]}  Qf6 {[%clk 0:02:21]} 14. Kb1 {[%clk 0:01:36]}  Bf5 {[%clk 0:01:37]} 15. Rc1 {[%clk 0:01:34]}  c6 {[%clk 0:01:33]} 16. Nd1 {[%clk 0:01:29]}  Qe7 {[%clk 0:01:14]} 17. Bxg7 {[%clk 0:01:27]}  Kxg7 {[%clk 0:01:14]} 18. h5 {[%clk 0:01:17]}  b5 {[%clk 0:01:11]} 19. hxg6 {[%clk 0:01:08]}  fxg6 {[%clk 0:01:12]} 20. axb5 {[%clk 0:01:04]}  a4 {[%clk 0:00:35]} 21. Qxb4 {[%clk 0:00:57]}  axb3 {[%clk 0:00:35]} 22. Qxb3 {[%clk 0:00:43]}  Ra5 {[%clk 0:00:20]} 23. Qc3+ {[%clk 0:00:37]}  Qe5 {[%clk 0:00:18]} 24. Qxa5 {[%clk 0:00:29]}  Rb8 {[%clk 0:00:16]} 25. Qc7+ {[%clk 0:00:29]}  Kf6 {[%clk 0:00:13]} 26. Qxb8 {[%clk 0:00:25]}  Qc5 {[%clk 0:00:08]} 27. Qf8+ {[%clk 0:00:21]} 1-0


[Site "https://www.chess.com"]

[Event "Titled Tuesday Blitz May 16 Early 2023"]
[White "Vargas Rodriguez, Wilver"]
[Black "Osinovsky, Stepan"]
[WhiteFideId "3509672"]
[BlackFideId "4157354"]
[WhiteElo "2246"]
[BlackElo "2222"]
[Result "0-1"]
[Round "02"]
[TimeControl "180+2"]
[Date "2023.05.16"]
[WhiteClock "0:00:00"]
[BlackClock "0:00:12"]

1. Nf3 {[%clk 0:03:00]}  Nf6 {[%clk 0:02:59]} 2. b3 {[%clk 0:02:59]}  g6 {[%clk 0:03:00]} 3. Bb2 {[%clk 0:02:59]}  Bg7 {[%clk 0:03:00]} 4. e4 {[%clk 0:02:58]}  d6 {[%clk 0:02:50]} 5. a4 {[%clk 0:02:10]}  O-O {[%clk 0:02:45]} 6. d3 {[%clk 0:02:00]}  e5 {[%clk 0:02:23]} 7. Be2 {[%clk 0:01:57]}  Nh5 {[%clk 0:02:21]} 8. g3 {[%clk 0:01:49]}  c5 {[%clk 0:02:00]} 9. Nc3 {[%clk 0:01:41]}  Nc6 {[%clk 0:01:58]} 10. Nd5 {[%clk 0:01:39]}  Be6 {[%clk 0:01:51]} 11. Qd2 {[%clk 0:01:35]}  b6 {[%clk 0:01:42]} 12. h3 {[%clk 0:01:11]}  Bxd5 {[%clk 0:01:19]} 13. exd5 {[%clk 0:01:11]}  Nb4 {[%clk 0:01:19]} 14. Nh4 {[%clk 0:00:53]}  Nf4 {[%clk 0:01:14]} 15. Bf3 {[%clk 0:00:35]}  Bh6 {[%clk 0:00:54]} 16. Kf1 {[%clk 0:00:14]}  Kg7 {[%clk 0:00:34]} 17. gxf4 {[%clk 0:00:13]}  Qxh4 {[%clk 0:00:34]} 18. c3 {[%clk 0:00:11]}  Na6 {[%clk 0:00:19]} 19. Qe2 {[%clk 0:00:10]}  Bxf4 {[%clk 0:00:17]} 20. d4 {[%clk 0:00:10]}  Nc7 {[%clk 0:00:16]} 21. dxc5 {[%clk 0:00:10]}  bxc5 {[%clk 0:00:15]} 22. Bg2 {[%clk 0:00:05]}  Rab8 {[%clk 0:00:15]} 23. Qc2 {[%clk 0:00:04]}  Rb7 {[%clk 0:00:14]} 24. b4 {[%clk 0:00:02]}  Rfb8 {[%clk 0:00:14]} 25. b5 {[%clk 0:00:02]}  a6 {[%clk 0:00:14]} 26. c4 {[%clk 0:00:00]}  Ne8 {[%clk 0:00:12]} 0-1


[Site "https://www.chess.com"]

[Event "Titled Tuesday Blitz May 16 Early 2023"]
[White "Bettalli, Francesco"]
[Black "Torres Dominguez, David"]
[WhiteFideId "2816453"]
[BlackFideId "2220857"]
[WhiteElo "2216"]
[BlackElo "1999"]
[Result "1-0"]
[Round "02"]
[TimeControl "180+2"]
[Date "2023.05.16"]
[WhiteClock "0:01:57"]
[BlackClock "0:00:32"]

1. d4 {[%clk 0:03:00]}  e5 {[%clk 0:02:59]} 2. Nc3 {[%clk 0:03:01]}  d6 {[%clk 0:02:53]} 3. dxe5 {[%clk 0:02:57]}  dxe5 {[%clk 0:02:53]} 4. Qxd8+ {[%clk 0:02:58]}  Kxd8 {[%clk 0:02:52]} 5. Nf3 {[%clk 0:02:59]}  f6 {[%clk 0:02:52]} 6. e4 {[%clk 0:02:55]}  Be6 {[%clk 0:02:52]} 7. Be3 {[%clk 0:02:54]}  Nd7 {[%clk 0:02:52]} 8. O-O-O {[%clk 0:02:55]}  c6 {[%clk 0:02:52]} 9. Nd2 {[%clk 0:02:49]}  Bc5 {[%clk 0:02:49]} 10. Bc4 {[%clk 0:02:49]}  Bxc4 {[%clk 0:02:45]} 11. Nxc4 {[%clk 0:02:48]}  Bxe3+ {[%clk 0:02:45]} 12. Nxe3 {[%clk 0:02:49]}  Kc7 {[%clk 0:02:44]} 13. Nf5 {[%clk 0:02:49]}  g6 {[%clk 0:02:42]} 14. Nd6 {[%clk 0:02:50]}  Ne7 {[%clk 0:02:39]} 15. Nxb7 {[%clk 0:02:48]}  Rab8 {[%clk 0:02:32]} 16. Nd6 {[%clk 0:02:45]}  Nc5 {[%clk 0:02:29]} 17. f3 {[%clk 0:02:42]}  Rb6 {[%clk 0:02:23]} 18. Nc4 {[%clk 0:02:42]}  Rb4 {[%clk 0:02:20]} 19. b3 {[%clk 0:02:42]}  Rhb8 {[%clk 0:02:16]} 20. a3 {[%clk 0:02:33]}  R4b7 {[%clk 0:02:12]} 21. b4 {[%clk 0:02:25]}  Ne6 {[%clk 0:02:09]} 22. Nd6 {[%clk 0:02:19]}  Rb6 {[%clk 0:02:04]} 23. Rd3 {[%clk 0:02:16]}  Rd8 {[%clk 0:02:02]} 24. Nc4 {[%clk 0:02:16]}  Rxd3 {[%clk 0:02:00]} 25. cxd3 {[%clk 0:02:17]}  Rb8 {[%clk 0:02:01]} 26. Kd2 {[%clk 0:02:17]}  Rd8 {[%clk 0:02:00]} 27. Rc1 {[%clk 0:02:17]}  Kb7 {[%clk 0:01:56]} 28. Na5+ {[%clk 0:02:16]}  Kb6 {[%clk 0:01:55]} 29. Na4+ {[%clk 0:02:07]}  Kb5 {[%clk 0:01:55]} 30. Nc5 {[%clk 0:02:07]}  Nf4 {[%clk 0:01:32]} 31. g3 {[%clk 0:02:05]}  Nh3 {[%clk 0:01:31]} 32. Ne6 {[%clk 0:02:03]}  Rd7 {[%clk 0:01:30]} 33. Rc5+ {[%clk 0:02:01]}  Kb6 {[%clk 0:01:29]} 34. Nc4+ {[%clk 0:02:01]}  Kb7 {[%clk 0:01:27]} 35. Ra5 {[%clk 0:01:59]}  Nc8 {[%clk 0:01:19]} 36. Nc5+ {[%clk 0:01:59]}  Kc7 {[%clk 0:01:17]} 37. Nxd7 {[%clk 0:02:00]}  Kxd7 {[%clk 0:01:17]} 38. Ke3 {[%clk 0:01:59]}  Kc7 {[%clk 0:01:15]} 39. Nxe5 {[%clk 0:02:00]}  fxe5 {[%clk 0:01:15]} 40. Rxe5 {[%clk 0:02:01]}  Kd6 {[%clk 0:01:06]} 41. f4 {[%clk 0:01:59]}  Nb6 {[%clk 0:00:54]} 42. Kf3 {[%clk 0:01:58]}  Nd7 {[%clk 0:00:49]} 43. Ra5 {[%clk 0:01:57]}  Ng1+ {[%clk 0:00:42]} 44. Kf2 {[%clk 0:01:57]}  Nh3+ {[%clk 0:00:32]} 45. Kg2 {[%clk 0:01:57]} 1-0


[Site "https://www.chess.com"]

[Event "Titled Tuesday Blitz May 16 Early 2023"]
[White "Joubert, Dantelle"]
[Black "Jumanov, Elbek"]
[WhiteFideId "14310813"]
[BlackFideId "14202905"]
[WhiteElo "1507"]
[BlackElo "2055"]
[Result "0-1"]
[Round "02"]
[TimeControl "180+2"]
[Date "2023.05.16"]
[WhiteClock "0:00:32"]
[BlackClock "0:01:58"]

1. d4 {[%clk 0:03:00]}  Nf6 {[%clk 0:02:59]} 2. c4 {[%clk 0:03:00]}  c5 {[%clk 0:02:57]} 3. d5 {[%clk 0:02:52]}  b5 {[%clk 0:02:58]} 4. Qc2 {[%clk 0:02:46]}  bxc4 {[%clk 0:02:57]} 5. e4 {[%clk 0:02:37]}  d6 {[%clk 0:02:54]} 6. Bxc4 {[%clk 0:02:28]}  g6 {[%clk 0:02:51]} 7. Nc3 {[%clk 0:02:23]}  Bg7 {[%clk 0:02:50]} 8. Nf3 {[%clk 0:02:16]}  O-O {[%clk 0:02:49]} 9. O-O {[%clk 0:02:15]}  Ba6 {[%clk 0:02:46]} 10. Nd2 {[%clk 0:02:10]}  Bxc4 {[%clk 0:02:41]} 11. Nxc4 {[%clk 0:02:10]}  Nbd7 {[%clk 0:02:41]} 12. h3 {[%clk 0:02:07]}  Nb6 {[%clk 0:02:41]} 13. Ne3 {[%clk 0:01:28]}  Nfd7 {[%clk 0:02:38]} 14. f4 {[%clk 0:01:20]}  Qc8 {[%clk 0:02:32]} 15. b3 {[%clk 0:01:10]}  c4 {[%clk 0:02:24]} 16. b4 {[%clk 0:01:09]}  a5 {[%clk 0:02:07]} 17. Ba3 {[%clk 0:00:59]}  axb4 {[%clk 0:02:02]} 18. Bxb4 {[%clk 0:00:59]}  Nc5 {[%clk 0:02:02]} 19. Bxc5 {[%clk 0:00:40]}  Qxc5 {[%clk 0:02:00]} 20. Kh1 {[%clk 0:00:32]}  Qxe3 {[%clk 0:01:58]} 0-1


[Site "https://www.chess.com"]

[Event "Titled Tuesday Blitz May 16 Early 2023"]
[White "Deepak, Katiyar"]
[Black "Mostbauer, Florian"]
[WhiteFideId "5026792"]
[BlackFideId "1626671"]
[WhiteElo "2069"]
[BlackElo "2234"]
[Result "0-1"]
[Round "02"]
[TimeControl "180+2"]
[Date "2023.05.16"]
[WhiteClock "0:00:00"]
[BlackClock "0:00:55"]

1. d4 {[%clk 0:03:00]}  d5 {[%clk 0:02:59]} 2. c4 {[%clk 0:02:57]}  c6 {[%clk 0:02:59]} 3. Nc3 {[%clk 0:02:55]}  Nf6 {[%clk 0:02:59]} 4. Nf3 {[%clk 0:02:54]}  dxc4 {[%clk 0:02:57]} 5. a4 {[%clk 0:02:51]}  Bf5 {[%clk 0:02:57]} 6. e3 {[%clk 0:02:48]}  e6 {[%clk 0:02:58]} 7. Bxc4 {[%clk 0:02:47]}  Bb4 {[%clk 0:02:57]} 8. O-O {[%clk 0:02:46]}  O-O {[%clk 0:02:56]} 9. Nh4 {[%clk 0:02:31]}  Nbd7 {[%clk 0:02:51]} 10. Nxf5 {[%clk 0:02:29]}  exf5 {[%clk 0:02:52]} 11. Bd3 {[%clk 0:01:53]}  g6 {[%clk 0:02:48]} 12. Bd2 {[%clk 0:01:45]}  Qa5 {[%clk 0:02:36]} 13. Qc2 {[%clk 0:01:31]}  Rac8 {[%clk 0:02:28]} 14. Rfd1 {[%clk 0:01:29]}  Rfd8 {[%clk 0:02:19]} 15. Ne2 {[%clk 0:01:18]}  Bxd2 {[%clk 0:02:15]} 16. Qxd2 {[%clk 0:01:18]}  Qxd2 {[%clk 0:02:13]} 17. Rxd2 {[%clk 0:01:19]}  Nb6 {[%clk 0:02:11]} 18. Nf4 {[%clk 0:01:13]}  Nbd5 {[%clk 0:02:10]} 19. Nxd5 {[%clk 0:01:09]}  Nxd5 {[%clk 0:02:09]} 20. Bc4 {[%clk 0:01:09]}  Kg7 {[%clk 0:02:07]} 21. Bxd5 {[%clk 0:01:09]}  Rxd5 {[%clk 0:02:07]} 22. Rc2 {[%clk 0:01:07]}  Rcd8 {[%clk 0:02:07]} 23. Rac1 {[%clk 0:01:07]}  f4 {[%clk 0:02:07]} 24. Kf1 {[%clk 0:01:04]}  Re8 {[%clk 0:02:04]} 25. Rc3 {[%clk 0:00:48]}  f5 {[%clk 0:02:03]} 26. b3 {[%clk 0:00:44]}  Kf6 {[%clk 0:02:00]} 27. Rd3 {[%clk 0:00:36]}  Re4 {[%clk 0:01:57]} 28. Rc5 {[%clk 0:00:29]}  Ke6 {[%clk 0:01:51]} 29. Rxd5 {[%clk 0:00:27]}  Kxd5 {[%clk 0:01:52]} 30. Rc3 {[%clk 0:00:20]}  fxe3 {[%clk 0:01:51]} 31. fxe3 {[%clk 0:00:19]}  f4 {[%clk 0:01:51]} 32. Rc5+ {[%clk 0:00:15]}  Kd6 {[%clk 0:01:50]} 33. exf4 {[%clk 0:00:11]}  Rxf4+ {[%clk 0:01:49]} 34. Ke2 {[%clk 0:00:11]}  Rxd4 {[%clk 0:01:50]} 35. Ra5 {[%clk 0:00:10]}  Rb4 {[%clk 0:01:47]} 36. Rxa7 {[%clk 0:00:08]}  Rxb3 {[%clk 0:01:47]} 37. a5 {[%clk 0:00:08]}  Rb2+ {[%clk 0:01:46]} 38. Kf3 {[%clk 0:00:08]}  Rb3+ {[%clk 0:01:33]} 39. Kf2 {[%clk 0:00:08]}  h5 {[%clk 0:01:19]} 40. a6 {[%clk 0:00:08]}  bxa6 {[%clk 0:01:20]} 41. Rxa6 {[%clk 0:00:08]}  Rb8 {[%clk 0:01:12]} 42. Ra7 {[%clk 0:00:08]}  Rf8+ {[%clk 0:00:59]} 43. Ke3 {[%clk 0:00:07]}  Rf6 {[%clk 0:00:58]} 44. Ra5 {[%clk 0:00:00]}  c5 {[%clk 0:00:55]} 0-1


[Site "https://www.chess.com"]

[Event "Titled Tuesday Blitz May 16 Early 2023"]
[White "electrosaw"]
[Black "Maranhao,Jose Renato Ruiz"]
[BlackFideId "2135175"]
[WhiteElo "2451"]
[BlackElo "1970"]
[Result "1-0"]
[Round "02"]
[TimeControl "180+2"]
[Date "2023.05.16"]
[WhiteClock "0:01:12"]
[BlackClock "0:00:00"]

1. e4 {[%clk 0:03:00]}  c6 {[%clk 0:03:00]} 2. Nc3 {[%clk 0:03:00]}  d5 {[%clk 0:03:00]} 3. Nf3 {[%clk 0:03:00]}  Bg4 {[%clk 0:02:59]} 4. h3 {[%clk 0:02:59]}  Bxf3 {[%clk 0:02:58]} 5. Qxf3 {[%clk 0:03:00]}  e6 {[%clk 0:02:58]} 6. d4 {[%clk 0:02:56]}  Bb4 {[%clk 0:02:30]} 7. Qg3 {[%clk 0:02:55]}  Nf6 {[%clk 0:01:30]} 8. Bd2 {[%clk 0:02:18]}  Bxc3 {[%clk 0:01:19]} 9. Bxc3 {[%clk 0:02:19]}  Nxe4 {[%clk 0:01:18]} 10. Qxg7 {[%clk 0:02:19]}  Qf6 {[%clk 0:01:17]} 11. Qxf6 {[%clk 0:02:18]}  Nxf6 {[%clk 0:01:18]} 12. O-O-O {[%clk 0:02:15]}  Nbd7 {[%clk 0:01:07]} 13. Bd3 {[%clk 0:02:12]}  O-O-O {[%clk 0:00:47]} 14. Rhg1 {[%clk 0:01:51]}  Rdg8 {[%clk 0:00:32]} 15. Bd2 {[%clk 0:01:34]}  h5 {[%clk 0:00:18]} 16. h4 {[%clk 0:01:32]}  Rg4 {[%clk 0:00:14]} 17. Bg5 {[%clk 0:01:17]}  Ne4 {[%clk 0:00:08]} 18. f3 {[%clk 0:01:12]}  Nxg5 {[%clk 0:00:08]} 19. fxg4 {[%clk 0:01:12]}  hxg4 {[%clk 0:00:00]} 20. hxg5 {[%clk 0:01:12]} 1-0


[Site "https://www.chess.com"]

[Event "Titled Tuesday Blitz May 16 Early 2023"]
[White "Yeritsyan, Hayk"]
[Black "Castillo Pena, Patricia Evarista"]
[WhiteFideId "13307320"]
[BlackFideId "6412106"]
[WhiteElo "2446"]
[BlackElo "1919"]
[Result "1-0"]
[Round "02"]
[TimeControl "180+2"]
[Date "2023.05.16"]
[WhiteClock "0:02:01"]
[BlackClock "0:00:23"]

1. b3 {[%clk 0:03:00]}  e5 {[%clk 0:02:41]} 2. Bb2 {[%clk 0:02:58]}  Nc6 {[%clk 0:02:40]} 3. e3 {[%clk 0:02:56]}  d5 {[%clk 0:02:37]} 4. Bb5 {[%clk 0:02:52]}  Bd6 {[%clk 0:02:33]} 5. Nf3 {[%clk 0:02:50]}  Qe7 {[%clk 0:02:32]} 6. d4 {[%clk 0:02:48]}  e4 {[%clk 0:02:23]} 7. Ne5 {[%clk 0:02:48]}  Bd7 {[%clk 0:02:21]} 8. Nxd7 {[%clk 0:02:46]}  Qxd7 {[%clk 0:02:19]} 9. O-O {[%clk 0:02:46]}  Nge7 {[%clk 0:02:18]} 10. c4 {[%clk 0:02:46]}  a6 {[%clk 0:02:13]} 11. Bxc6 {[%clk 0:02:45]}  bxc6 {[%clk 0:02:11]} 12. Ba3 {[%clk 0:02:44]}  Bxa3 {[%clk 0:02:00]} 13. Nxa3 {[%clk 0:02:45]}  O-O {[%clk 0:02:00]} 14. Qd2 {[%clk 0:02:41]}  a5 {[%clk 0:01:56]} 15. Rac1 {[%clk 0:02:37]}  a4 {[%clk 0:01:28]} 16. b4 {[%clk 0:02:34]}  f5 {[%clk 0:01:12]} 17. b5 {[%clk 0:02:17]}  dxc4 {[%clk 0:01:00]} 18. bxc6 {[%clk 0:02:15]}  Nxc6 {[%clk 0:00:56]} 19. Rxc4 {[%clk 0:02:12]}  Ne5 {[%clk 0:00:40]} 20. Rc3 {[%clk 0:02:06]}  Nd3 {[%clk 0:00:39]} 21. Nc4 {[%clk 0:02:04]}  Qd6 {[%clk 0:00:23]} 22. Nxd6 {[%clk 0:02:01]} 1-0


[Site "https://www.chess.com"]